bitfinex-derivatives/quotes_ETHF0:USTF0_20240927
["timestamp","ask_amount","ask_price","bid_price","bid_amount"]
[1727461590706,0.37103,2694.5,2694.4,0.7696]
[1727461591712,1.29861,2694.5,2694.4,0.7696]
[1727461592125,1.29861,2694.5,2694.4,0.377]
[1727461592715,1.2988,2694.1,2694.0,0.4015]
[1727461592918,2.89,2694.2,2694.0,0.4015]
[1727461593218,2.89,2694.2,2694.1,0.37108]
[1727461594417,3.2078,2694.5,2694.1,0.37108]
[1727461594714,2.89,2694.4,2694.3,0.37104]
[1727461594916,2.89,2694.7,2694.6,0.37101]
[1727461595122,3.261,2694.7,2694.6,0.37101]
[1727461595417,2.89,2694.7,2694.6,0.37101]
[1727461595909,3.261,2694.7,2694.6,0.37101]
[1727461597722,2.89,2694.7,2694.4,0.4015]
[1727461597915,0.3711,2694.0,2693.9,4.65441478]
[1727461598116,2.7041097,2694.0,2693.9,0.3955]
[1727461598316,3.6318597,2694.0,2693.9,0.3955]
[1727461598513,2.7041097,2694.0,2693.9,0.3955]
[1727461598922,3.6318597,2694.0,2693.9,0.3955]
[1727461599120,0.37115,2693.6,2693.4,3.2078]
[1727461599420,2.89,2693.6,2693.4,3.2078]
[1727461599621,3.26116,2693.6,2693.4,3.57897]
[1727461599812,6.9206,2693.5,2693.0,1.44661478]
[1727461600119,6.0978,2693.1,2692.6,0.086]
[1727461600427,4.2568,2693.1,2692.7,2.88469389]
[1727461600719,2.89,2693.0,2692.7,0.37127]
[1727461601221,2.89,2693.0,2692.5,1.85041478]
[1727461601222,0.37126,2692.9,2692.5,0.4038]
[1727461601521,3.2078,2693.6,2693.5,0.37117]
[1727461601723,3.2078,2693.6,2692.9,4.42261478]
[1727461601925,3.2078,2693.6,2693.4,0.37117]
[1727461602224,3.2078,2693.6,2693.5,0.77637]
[1727461602919,3.2078,2693.6,2693.5,0.4052]
[1727461603120,6.46895,2693.6,2693.5,0.4052]
[1727461603425,3.2078,2693.6,2693.5,0.4052]
[1727461604128,3.2078,2693.6,2693.5,0.77637]
[1727461606915,3.57895,2693.6,2693.5,0.4052]
[1727461608128,3.2078,2693.6,2693.5,0.77637]
[1727461608323,3.57895,2693.6,2693.5,0.4052]
[1727461610029,0.37114,2693.7,2693.6,0.37115]
[1727461610332,0.37115,2693.6,2693.5,0.4052]
[1727461610635,3.57895,2693.6,2693.5,0.4052]
[1727461611127,3.57895,2693.6,2693.1,0.3863]
[1727461611128,4.13569,2693.6,2693.1,0.3863]
[1727461611326,3.2078,2693.6,2693.1,0.7693]
[1727461611626,0.37117,2693.5,2693.4,0.37118]
[1727461612118,3.57896,2693.6,2693.5,0.37117]
[1727461612314,0.37115,2693.7,2693.6,0.37115]
[1727461612525,0.37113,2693.8,2693.7,0.75413]
[1727461612823,3.574,2693.9,2693.7,0.75413]
[1727461612824,3.2078,2693.9,2693.8,0.37112]
[1727461613127,3.2078,2693.9,2693.8,0.74272]
[1727461613517,0.37112,2693.8,2693.7,0.75413]
[1727461613718,0.37112,2693.8,2693.7,0.75414]
[1727461614430,3.2078,2693.9,2693.8,0.37112]
[1727461614635,3.2078,2693.9,2693.8,0.73852]
[1727461615428,7.02542,2694.4,2693.8,4.0794]
[1727461615624,0.37108,2694.2,2694.1,0.37108]
[1727461617034,0.37108,2694.2,2693.8,1.29521]
[1727461617035,0.37106,2694.3,2694.2,0.37106]
[1727461618126,0.37108,2694.2,2694.1,0.37107]
[1727461618831,0.37108,2694.1,2694.0,0.76069]
[1727461619225,0.37108,2694.2,2694.1,0.37108]
[1727461619824,0.37107,2694.3,2694.2,0.37106]
[1727461620133,6.0978,2694.4,2694.0,0.3896]
[1727461620334,6.0978,2694.4,2694.1,0.37107]
[1727461620335,0.37107,2694.2,2694.1,0.37107]
[1727461621327,6.602,2694.2,2693.7,0.383]
[1727461621529,2.89,2693.9,2693.8,0.37111]
[1727461621730,3.2078,2694.0,2693.9,0.37111]
[1727461622329,0.37107,2694.3,2694.2,0.37106]
[1727461622530,3.98084,2694.5,2694.4,0.37104]
[1727461622835,8.73718694,2694.6,2694.3,1.12925]
[1727461622836,0.37104,2694.4,2694.3,1.12925]
[1727461623028,0.37104,2694.4,2694.3,0.7582]
[1727461623232,0.92763,2694.4,2693.9,3.2078]
[1727461623433,0.37109,2694.1,2693.9,1.15861]
[1727461623636,0.3711,2694.0,2693.9,0.7875]
[1727461623837,0.37114,2693.7,2693.3,0.96814375]
[1727461624139,7.3583,2694.1,2693.3,0.7875]
[1727461624140,0.37118,2693.4,2693.3,0.7875]
[1727461624331,0.37123,2693.1,2692.8,1.33940375]
[1727461624529,0.37123,2693.1,2692.8,0.37126]
[1727461624530,3.26123,2693.1,2692.8,0.37126]
[1727461624735,0.37124,2693.0,2692.7,0.37127]
[1727461624933,2.89,2693.1,2692.6,1.33943375]
[1727461625236,2.89,2693.1,2692.5,0.96814375]
[1727461625237,0.37128,2692.7,2692.5,0.96814375]
[1727461625438,0.37128,2692.7,2692.4,3.57911]
[1727461625627,2.89,2692.9,2692.3,0.96814375]
[1727461625628,0.92816,2692.8,2692.3,0.96814375]
[1727461625832,0.3713,2692.5,2692.3,0.96814375]
[1727461626039,0.37127,2692.8,2692.2,1.37274375]
[1727461626240,0.37123,2693.1,2692.7,0.37127]
[1727461626439,6.0978,2693.2,2692.8,0.3973]
[1727461626743,0.37125,2692.9,2692.8,0.3973]
[1727461627334,6.46902,2693.2,2692.9,0.37124]
[1727461627638,0.37122,2693.1,2692.9,0.37124]
[1727461628031,0.3808,2693.3,2692.8,0.3973]
[1727461628340,0.37122,2693.2,2693.0,0.37123]
[1727461628542,0.37121,2693.2,2693.0,0.37123]
[1727461629239,0.3712,2693.3,2693.1,0.37122]
[1727461629433,0.37121,2693.2,2693.0,0.37123]
[1727461629651,0.37121,2693.3,2693.1,0.37122]
[1727461629941,0.37125,2693.0,2692.8,0.37126]
[1727461630134,0.37125,2692.9,2692.7,1.13697]
[1727461630332,3.81805,2693.2,2692.7,0.7657]
[1727461630333,0.37122,2693.1,2692.7,0.7657]
[1727461630629,3.26122,2693.2,2693.0,0.37123]
[1727461630939,0.37122,2693.2,2693.0,0.37123]
[1727461631340,0.37123,2693.1,2692.9,0.37124]
[1727461631835,3.57904,2693.0,2692.8,0.37126]
[1727461632339,0.37125,2692.9,2692.8,0.37126]
[1727461632538,0.37125,2692.9,2692.7,0.37127]
[1727461633141,3.57904,2693.0,2692.8,0.37126]
[1727461633641,0.92813,2692.9,2692.5,0.96814375]
[1727461633842,0.37129,2692.6,2692.4,0.77361]
[1727461634435,0.37129,2692.6,2692.5,0.3713]
[1727461634741,0.37126,2692.8,2692.6,0.37128]
[1727461635041,3.57905,2693.0,2692.8,0.37126]
[1727461635435,3.2078,2693.0,2692.9,0.37125]
[1727461635631,3.2078,2693.0,2692.9,4.08485]
[1727461636036,3.2078,2693.0,2692.6,0.96814375]
[1727461636249,0.37125,2692.9,2692.7,0.37127]
[1727461636539,0.37126,2692.8,2692.7,0.37127]
[1727461636747,0.37127,2692.8,2692.5,1.73484375]
[1727461636944,0.37127,2692.8,2692.6,0.37128]
[1727461637243,0.37128,2692.7,2692.5,0.7667]
[1727461637437,0.37128,2692.7,2692.6,0.37129]
[1727461637937,0.3713,2692.5,2692.4,0.96814375]
[1727461638139,2.89,2692.7,2692.3,0.37132]
[1727461638140,0.37132,2692.4,2692.3,0.37132]
[1727461638636,0.92828,2692.5,2692.1,3.59]
[1727461638835,0.37134,2692.3,2692.1,3.59]
[1727461639044,0.37134,2692.3,2692.2,0.37135]
[1727461639245,0.37135,2692.2,2691.9,0.96814375]
[1727461639546,0.37138,2692.0,2691.9,0.37138]
[1727461639941,3.57915,2692.2,2692.1,0.37136]
[1727461640145,0.37135,2692.2,2692.1,0.37136]
[1727461640341,2.89,2692.5,2692.0,0.92844]
[1727461640646,0.37133,2692.4,2692.3,0.37132]
[1727461640846,3.57907,2692.8,2692.7,0.37128]
[1727461641147,0.37126,2692.9,2692.8,0.37126]
[1727461642145,3.57903,2693.1,2693.0,0.37124]
[1727461642347,3.2078,2693.1,2693.0,0.37124]
[1727461643345,0.77178,2693.5,2693.4,0.37118]
[1727461643547,0.37119,2693.4,2693.3,0.37118]
[1727461644345,0.37122,2693.2,2693.1,0.37121]
[1727461644541,6.469,2693.3,2693.2,0.3712]
[1727461644849,3.2078,2693.3,2693.2,0.3712]
[1727461645643,0.37122,2693.1,2693.0,0.37124]
[1727461646445,6.0978,2693.3,2693.1,0.37121]
[1727461646446,0.37122,2693.2,2693.1,0.37121]
[1727461647245,0.37124,2693.1,2692.7,0.96814375]
[1727461647450,6.0978,2693.3,2692.8,0.3723]
[1727461647949,0.37123,2693.1,2692.8,0.3723]
[1727461648349,0.37123,2693.1,2693.0,0.37124]
[1727461649046,0.37126,2692.8,2692.7,1.33941375]
[1727461649248,3.57906,2692.8,2692.7,0.37127]
[1727461649951,0.37128,2692.7,2692.6,0.77368]
[1727461650151,0.37128,2692.7,2692.6,0.4024]
[1727461651045,0.37133,2692.3,2692.2,0.96814375]
[1727461651248,2.89,2692.4,2692.1,0.96991605]
[1727461651447,0.37135,2692.2,2692.1,1.34126605]
[1727461651653,0.37135,2692.2,2692.1,0.37135]
[1727461651854,0.37135,2692.2,2692.0,0.3668]
[1727461651855,0.37132,2692.4,2692.3,0.37132]
[1727461652350,7.02604,2692.6,2692.0,1.33671605]
[1727461652554,0.37133,2692.3,2692.0,1.33671605]
[1727461652949,0.37133,2692.3,2692.2,0.37135]
[1727461653347,0.37133,2692.4,2692.3,0.37133]
[1727461653553,0.37134,2692.3,2692.2,0.37134]
[1727461653954,0.37133,2692.4,2692.3,0.37133]
[1727461654150,3.2078,2692.6,2692.1,0.9284]
[1727461654452,3.57909,2692.6,2692.5,0.3713]
[1727461654657,3.2078,2692.6,2692.5,4.0849]
[1727461655047,3.2078,2692.6,2692.5,0.3713]
[1727461655247,0.3713,2692.5,2692.4,0.75422]
[1727461655657,0.3713,2692.5,2692.4,0.3829]
[1727461655851,0.3713,2692.5,2692.4,0.75422]
[1727461656247,0.3713,2692.5,2692.4,0.3829]
[1727461657048,0.3713,2692.5,2692.4,0.75422]
[1727461657548,3.2078,2692.6,2692.5,0.3713]
[1727461658150,0.37128,2692.7,2692.6,0.37129]
[1727461659058,0.37127,2692.8,2692.7,0.37127]
[1727461659262,1.073,2693.0,2692.8,0.374]
[1727461659455,0.92808,2693.1,2692.8,0.374]
[1727461659644,0.37124,2693.0,2692.9,0.37124]
[1727461660045,0.37123,2693.1,2693.0,0.37123]
[1727461660354,0.37123,2693.1,2692.8,0.374]
[1727461660355,3.57902,2693.2,2693.1,0.37122]
[1727461660653,3.57901,2693.2,2693.1,0.37122]
[1727461660855,3.2078,2693.2,2693.1,0.37122]
[1727461661060,3.57901,2693.2,2693.1,0.37122]
[1727461661248,3.2078,2693.2,2693.1,0.37122]
[1727461661649,3.2078,2693.2,2692.8,1.34391605]
[1727461661856,0.37125,2692.9,2692.8,0.374]
[1727461662753,0.37125,2692.9,2692.8,0.74526]
[1727461663150,0.37125,2692.9,2692.8,0.374]
[1727461663352,0.37128,2692.7,2692.6,0.3789]
[1727461663549,0.37128,2692.7,2692.5,0.96991605]
[1727461663550,1.29952,2692.6,2692.5,0.96991605]
[1727461663751,0.37129,2692.6,2692.4,0.37131]
[1727461663950,6.0978,2692.7,2692.4,0.37131]
[1727461664155,6.0978,2692.7,2692.3,0.3934]
[1727461664156,0.37132,2692.5,2692.3,0.3934]
[1727461664366,0.37132,2692.5,2692.4,0.37132]
[1727461664950,3.2078,2692.6,2692.5,0.3713]
[1727461665557,0.37132,2692.4,2692.3,0.96991605]
[1727461665861,0.37132,2692.4,2692.3,0.3715]
[1727461666054,6.0978,2692.6,2692.4,0.37131]
[1727461666456,0.3713,2692.5,2692.4,0.37131]
[1727461667166,3.2078,2692.6,2692.5,0.3713]
[1727461667665,3.2078,2692.6,2692.5,4.0849]
[1727461667960,3.2078,2692.6,2692.5,1.34121605]
[1727461668159,3.2078,2692.6,2692.3,1.44661478]
[1727461668358,0.37131,2692.5,2692.4,0.37131]
[1727461668551,0.37131,2692.5,2692.4,0.74281]
[1727461669464,3.2078,2692.6,2692.5,0.3713]
[1727461669663,3.2078,2692.6,2692.5,1.34250913]
[1727461669963,3.57909,2692.6,2692.5,1.34250913]
[1727461670557,3.57909,2692.6,2692.5,0.97120913]
[1727461670859,0.3713,2692.5,2692.4,1.51931]
[1727461671062,0.3713,2692.5,2692.4,2.95787818]
[1727461671465,3.5791,2692.6,2692.5,0.3713]
[1727461671653,3.5791,2692.6,2692.5,1.34365314]
[1727461672165,3.2078,2692.6,2692.5,3.25635122]
[1727461672455,3.2078,2692.6,2692.5,1.80973644]
[1727461673061,3.2078,2692.6,2692.5,1.80970998]
[1727461673258,3.2078,2692.6,2692.5,3.25632476]
[1727461673459,3.2078,2692.6,2692.5,1.80970998]
[1727461673957,3.57909,2692.6,2692.5,1.80970998]
[1727461674266,3.57909,2692.6,2692.5,1.34359664]
[1727461674760,3.2078,2692.6,2692.5,1.34359664]
[1727461675066,3.2078,2692.6,2692.5,1.80987088]
[1727461675262,3.2078,2692.6,2692.5,6.97008566]
[1727461675461,3.2078,2693.4,2693.3,0.37119]
[1727461675858,3.2078,2693.4,2693.3,1.34306309]
[1727461676564,3.2078,2693.4,2693.3,2.27105309]
[1727461676860,3.2078,2693.4,2693.3,11.52116181]
[1727461677066,3.2078,2693.4,2693.3,16.33864631]
[1727461677253,3.2078,2693.4,2693.3,7.464908]
[1727461677453,3.2078,2693.4,2693.3,5.52116181]
[1727461677862,3.2078,2693.4,2693.3,5.52034497]
[1727461678563,3.2078,2693.4,2693.3,6.97606924]
[1727461679260,3.2078,2693.7,2693.6,0.37115]
[1727461680265,0.37113,2693.8,2693.6,1.34139202]
[1727461680465,0.37114,2693.7,2693.6,1.34139202]
[1727461680966,0.37114,2693.7,2693.6,0.97025202]
[1727461681361,0.37113,2693.8,2693.6,1.34140202]
[1727461681563,0.37113,2693.8,2693.6,0.37115]
[1727461681757,0.37115,2693.6,2693.5,0.97025202]
[1727461682066,3.2078,2693.7,2693.4,1.34142202]
[1727461682067,0.37117,2693.5,2693.4,1.34142202]
[1727461682264,0.37117,2693.5,2693.3,1.34144202]
[1727461682466,0.37117,2693.5,2693.2,2.25357804]
[1727461682467,0.37117,2693.5,2693.4,0.37118]
[1727461682656,0.92789,2693.6,2693.2,1.76845202]
[1727461682859,3.2078,2693.7,2693.2,1.76845202]
[1727461683168,0.92787,2693.7,2693.4,0.37118]
[1727461683463,0.37117,2693.5,2693.4,0.37118]
[1727461683770,2.89,2693.6,2693.2,1.37365202]
[1727461684068,0.37119,2693.3,2693.2,1.37365202]
[1727461684562,0.37121,2693.2,2693.1,1.34146202]
[1727461684762,7.02579,2693.3,2692.9,1.34124301]
[1727461684960,0.37122,2693.2,2692.9,0.97000301]
[1727461685156,0.37122,2693.1,2693.0,0.37123]
[1727461685358,3.579,2693.3,2693.0,3.7136]
[1727461685564,0.37119,2693.4,2693.0,0.97000301]
[1727461685763,0.37119,2693.4,2693.3,0.37119]
[1727461686064,0.37118,2693.4,2693.3,0.37119]
[1727461686365,0.37119,2693.3,2693.1,1.34121301]
[1727461686674,0.37119,2693.3,2693.2,0.37121]
[1727461687064,6.0978,2693.3,2693.0,0.97000301]
[1727461687257,1.29934,2693.0,2692.9,0.97000301]
[1727461687458,0.37126,2692.8,2692.6,4.17780301]
[1727461687661,0.73815,2692.9,2692.7,0.37128]
[1727461687866,0.37124,2693.0,2692.6,4.17780301]
[1727461688072,0.37124,2693.0,2692.8,0.37125]
[1727461688370,0.37124,2693.0,2692.8,0.37126]
[1727461688570,0.766,2693.2,2692.6,4.17780301]
[1727461688760,0.37123,2693.1,2692.9,0.37125]
[1727461690267,0.766,2693.2,2692.7,0.97000301]
[1727461690460,0.37123,2693.1,2692.9,0.37124]
[1727461691963,0.37124,2693.0,2692.7,0.97000301]
[1727461692362,3.2078,2693.1,2692.8,0.37126]
[1727461692665,3.2078,2693.1,2692.7,0.97000301]
[1727461692968,3.2078,2693.1,2692.8,0.37125]
[1727461692969,0.37124,2693.0,2692.8,0.37125]
[1727461693266,4.64171,2693.0,2692.7,0.97000301]
[1727461693564,0.37128,2692.7,2692.6,0.37128]
[1727461693963,4.08488,2692.7,2692.6,0.37128]
[1727461694364,3.7136,2692.7,2692.6,0.37128]
[1727461694668,0.3713,2692.6,2692.5,0.3713]
[1727461694864,0.37132,2692.4,2692.1,1.34900301]
[1727461695063,0.37133,2692.4,2692.3,0.37132]
[1727461695865,0.37133,2692.4,2692.1,0.379]
[1727461695866,0.3658,2692.5,2692.4,0.37132]
[1727461697071,0.37136,2692.1,2692.0,0.3777]
[1727461697375,0.37136,2692.1,2692.0,0.74907]
[1727461698470,0.37135,2692.2,2692.1,0.37135]
[1727461700565,0.3658,2692.5,2692.1,3.7144]
[1727461700766,3.2078,2692.6,2692.5,0.3713]
[1727461701069,0.37127,2692.8,2692.7,0.37127]
[1727461701270,3.57905,2692.9,2692.8,0.37126]
[1727461701465,3.2078,2692.9,2692.8,0.37126]
[1727461701664,3.2078,2692.9,2692.8,4.08486]
[1727461701865,3.2078,2692.9,2692.8,0.37126]
[1727461702066,3.2078,2692.9,2692.8,0.76126]
[1727461702871,0.37122,2693.2,2692.8,0.39]
[1727461703075,3.57902,2693.2,2692.8,0.39]
[1727461703275,3.57902,2693.2,2692.8,1.36000301]
[1727461703465,0.37125,2693.0,2692.8,0.39]
[1727461703668,2.89,2693.0,2692.7,0.97000301]
[1727461703976,0.37126,2692.9,2692.8,0.37126]
[1727461704178,0.37125,2693.0,2692.8,0.37126]
[1727461704377,6.0978,2693.2,2692.7,0.97000301]
[1727461704689,0.37124,2693.0,2692.9,0.37124]
[1727461705072,0.37125,2692.9,2692.8,0.37126]
[1727461705876,0.37126,2692.8,2692.7,1.70897301]
[1727461706082,0.92807,2693.1,2692.7,0.3677]
[1727461706384,0.37126,2692.9,2692.8,0.37126]
[1727461707980,0.37126,2692.9,2692.8,1.34126301]
[1727461708673,0.37126,2692.9,2692.8,0.97000301]
[1727461708982,0.37126,2692.9,2692.8,0.37126]
[1727461710180,0.37124,2693.0,2692.9,0.37124]
[1727461710577,0.37123,2693.1,2693.0,0.37123]
[1727461710770,0.3712,2693.3,2693.2,0.3712]
[1727461710974,0.37122,2693.2,2693.1,0.37121]
[1727461711270,0.37123,2693.1,2693.0,0.37123]
[1727461711472,4.34,2693.4,2692.8,3.2078]
[1727461711473,0.37122,2693.2,2693.1,0.37122]
[1727461711972,4.08402,2693.2,2693.1,0.37122]
[1727461713477,0.37123,2693.1,2693.0,0.37122]
[1727461713783,0.37125,2692.9,2692.8,3.57906]
[1727461714477,0.37124,2693.0,2692.9,0.37124]
[1727461714674,6.4638,2693.4,2693.1,0.37122]
[1727461714875,0.37122,2693.2,2693.1,0.37122]
[1727461715070,0.37123,2693.1,2693.0,0.37123]
[1727461715481,0.37119,2693.1,2692.9,0.37121]
[1727461715678,0.37119,2693.1,2692.8,3.2078]
[1727461715983,0.3712,2693.0,2692.9,0.37121]
[1727461716179,0.37119,2693.1,2693.0,0.37119]
[1727461716382,0.3712,2693.0,2692.9,0.97000301]
[1727461716585,0.37119,2693.1,2693.0,0.3712]
[1727461716788,2.89,2693.2,2692.8,4.17780301]
[1727461716980,0.37121,2692.9,2692.8,4.17780301]
[1727461717881,0.37121,2692.9,2692.8,4.54903301]
[1727461718087,0.37121,2692.9,2692.8,4.17780301]
[1727461718283,0.37121,2692.9,2692.8,4.54902301]
[1727461718475,0.37121,2692.9,2692.8,5.61307049]
[1727461719484,4.18925,2692.9,2692.8,0.97000301]
[1727461719689,0.37124,2692.7,2692.6,0.97000301]
[1727461719885,1.29939,2692.6,2692.5,3.2078]
[1727461720381,0.37129,2692.3,2692.2,4.54770301]
[1727461720590,0.37129,2692.3,2692.2,4.17780301]
[1727461720984,0.37129,2692.3,2692.2,5.61324073]
[1727461721486,0.37129,2692.3,2692.2,3.2078]
[1727461721879,0.37129,2692.3,2692.2,4.17780301]
[1727461723289,0.37129,2692.4,2692.2,4.17780301]
[1727461724289,0.37128,2692.5,2692.2,4.17780301]
[1727461724684,1.084,2692.7,2692.2,4.17780301]
[1727461724885,3.6096,2692.8,2692.2,4.17780301]
[1727461724886,0.37127,2692.5,2692.2,4.17780301]
[1727461725077,0.37126,2692.6,2692.2,4.54910301]
[1727461725699,0.37126,2692.6,2692.3,0.37129]
[1727461725991,0.37125,2692.7,2692.3,1.34129301]
[1727461726195,3.6096,2692.8,2692.3,1.34129301]
[1727461726390,0.37124,2692.7,2692.3,1.34129301]
[1727461726584,0.37125,2692.6,2692.3,1.34129301]
[1727461726988,3.6096,2692.8,2692.3,0.97000301]
[1727461727180,0.37126,2692.6,2692.3,1.34640301]
[1727461727385,0.37127,2692.5,2692.3,1.34640301]
[1727461727693,0.37127,2692.5,2692.4,0.97000301]
[1727461727991,0.37126,2692.6,2692.4,0.97000301]
[1727461728289,0.37128,2692.5,2692.3,1.34640301]
[1727461728593,0.37127,2692.5,2692.3,1.34640301]
[1727461728791,7.02592,2692.7,2692.4,0.97000301]
[1727461728792,0.37126,2692.6,2692.4,0.97000301]
[1727461729093,3.57905,2692.7,2692.4,1.34127301]
[1727461729294,3.57904,2692.7,2692.4,0.97000301]
[1727461729489,3.57904,2692.7,2692.5,0.97000301]
[1727461730201,3.57904,2692.7,2692.4,1.34127301]
[1727461730390,0.37125,2692.6,2692.5,0.97000301]
[1727461730595,0.37125,2692.6,2692.4,0.97000301]
[1727461730799,0.37125,2692.6,2692.4,1.34128301]
[1727461731295,0.37127,2692.5,2692.3,2.20306804]
[1727461731489,3.2078,2692.7,2692.3,0.3764]
[1727461731690,0.928,2693.0,2692.5,0.37126]
[1727461731884,0.37124,2692.7,2692.6,0.7821]
[1727461732087,0.37124,2692.8,2692.6,1.15335]
[1727461732291,0.37124,2692.8,2692.7,0.3933]
[1727461732791,0.37124,2692.8,2692.7,0.76454]
[1727461733192,0.37122,2692.9,2692.7,0.76454]
[1727461733393,0.37123,2692.8,2692.7,0.76454]
[1727461734401,0.37123,2692.8,2692.7,0.3933]
[1727461734596,0.928,2693.0,2692.7,0.76454]
[1727461734801,0.92797,2693.1,2692.7,0.76453]
[1727461735201,0.92797,2693.1,2692.7,0.3933]
[1727461735400,0.92797,2693.1,2692.7,0.76453]
[1727461735603,0.37122,2692.9,2692.7,0.76453]
[1727461736108,0.37123,2692.8,2692.7,0.76453]
[1727461736504,0.37122,2692.9,2692.7,0.76453]
[1727461736811,0.37123,2692.8,2692.7,0.76453]
[1727461738705,0.92801,2693.0,2692.7,0.3933]
[1727461738907,0.37122,2692.9,2692.8,0.37122]
[1727461739206,0.37117,2693.2,2693.1,0.37118]
[1727461739400,4.1357,2693.3,2692.7,3.2833]
[1727461739401,0.37119,2693.1,2693.0,0.37119]
[1727461739703,0.37119,2693.1,2693.0,2.40834682]
[1727461739907,0.37119,2693.1,2693.0,2.40832332]
[1727461740294,1.29916,2693.1,2693.0,0.97201725]
[1727461742003,1.29916,2693.1,2692.9,0.97201725]
[1727461742004,1.2992,2693.0,2692.9,0.97201725]
[1727461742201,1.7,2693.0,2692.9,0.97201725]
[1727461742401,1.29925,2692.9,2692.8,0.97201725]
[1727461742604,1.29925,2692.9,2692.8,2.40834661]
[1727461742903,1.29925,2692.9,2692.8,2.8917074]
[1727461743104,1.29925,2692.9,2692.8,1.43632936]
[1727461743305,12.03869,2692.9,2692.8,0.97181395]
[1727461743512,1.29935,2692.7,2692.6,0.97181395]
[1727461743718,1.29935,2692.7,2692.5,1.45537804]
[1727461743719,1.29939,2692.6,2692.5,0.97181395]
[1727461744595,1.29939,2692.6,2692.5,1.43690492]
[1727461744798,5.01299,2692.6,2692.5,1.43690492]
[1727461744998,5.01299,2692.6,2692.5,2.40913775]
[1727461745209,7.90299,2692.6,2692.5,2.40913775]
[1727461745412,7.90299,2692.6,2692.5,1.43690492]
[1727461745607,7.90299,2692.6,2692.5,2.40921493]
[1727461746110,5.01299,2692.6,2692.5,2.89228296]
[1727461746609,5.01299,2692.6,2692.4,0.97230909]
[1727461746610,0.37127,2692.5,2692.4,0.97230909]
[1727461747508,0.37128,2692.4,2692.3,4.18010909]
[1727461747704,0.74728,2692.4,2692.3,4.18010909]
[1727461747905,0.74728,2692.4,2692.3,3.2078]
[1727461748301,0.74728,2692.4,2692.3,5.61711864]
[1727461748498,0.74728,2692.4,2692.3,4.18010909]
[1727461749307,1.67549,2692.4,2692.3,0.97230909]
[1727461749502,1.67549,2692.4,2692.2,1.45537804]
[1727461749503,1.29953,2692.3,2692.2,0.97230909]
[1727461749903,0.37131,2692.2,2692.1,1.37160909]
[1727461750110,0.37131,2692.2,2692.1,2.8080556]
[1727461750316,0.37131,2692.2,2692.1,3.1793756]
[1727461750915,0.37131,2692.2,2692.1,2.20706651]
[1727461751414,0.37131,2692.2,2692.1,3.17889323]
[1727461751712,0.37131,2692.2,2692.1,2.80757323]
[1727461752210,0.3713,2692.3,2692.2,0.37131]
[1727461752414,0.3713,2692.3,2692.2,1.34326655]
[1727461752911,0.37129,2692.4,2692.3,0.37129]
[1727461753212,0.37128,2692.4,2692.3,0.37129]
[1727461753415,0.37129,2692.3,2692.2,1.71456655]
[1727461753708,0.37129,2692.4,2692.3,0.37129]
[1727461754615,0.37129,2692.4,2692.3,2.89409073]
[1727461755916,0.37129,2692.4,2692.3,3.26538073]
[1727461756915,1.2995,2692.4,2692.3,3.29029073]
[1727461757220,1.2995,2692.4,2692.3,1.83246951]
[1727461757514,1.2995,2692.4,2692.3,2.89409073]
[1727461757815,0.37131,2692.2,2692.1,0.97195524]
[1727461758211,0.74931,2692.2,2692.1,0.97195524]
[1727461758416,0.74931,2692.2,2692.1,2.40859323]
[1727461758722,0.74931,2692.2,2692.1,1.43663799]
[1727461759109,0.37132,2692.1,2692.0,1.83032122]
[1727461759415,0.37132,2692.1,2692.0,3.26698527]
[1727461760520,0.9282,2692.5,2692.0,3.26698527]
[1727461760712,0.37127,2692.5,2692.3,0.97215984]
[1727461760908,0.37127,2692.5,2692.4,0.3792]
[1727461761313,0.37127,2692.5,2692.4,1.35135984]
[1727461762420,0.37127,2692.5,2692.4,0.3792]
[1727461763121,1.29949,2692.4,2692.3,0.97215984]
[1727461763316,1.29949,2692.4,2692.3,1.35685984]
[1727461763317,0.37128,2692.4,2692.3,1.35685984]
[1727461763514,0.37128,2692.4,2692.3,2.79337627]
[1727461764119,0.37128,2692.4,2692.3,3.27911438]
[1727461764320,0.37128,2692.4,2692.3,2.79320535]
[1727461764521,0.37128,2692.4,2692.3,3.27911438]
[1727461764727,5.01389,2692.4,2692.3,0.97201357]
[1727461765014,1.29953,2692.3,2692.2,0.97201357]
[1727461765214,4.18953,2692.3,2692.2,2.40851634]
[1727461765416,4.59243,2692.3,2692.2,0.97201357]
[1727461765824,4.59243,2692.3,2692.2,2.40869361]
[1727461766222,4.59243,2692.3,2692.2,2.40882928]
[1727461766416,4.59243,2692.3,2692.2,1.43668004]
[1727461766417,5.52067,2692.3,2692.2,1.43668004]
[1727461766618,5.52067,2692.3,2692.1,1.45782122]
[1727461766619,2.22787,2692.2,2692.1,0.97215232]
[1727461766831,7.39457,2692.2,2692.1,0.97215232]
[1727461767127,7.39457,2692.2,2691.9,1.45782122]
[1727461767128,1.29963,2692.1,2692.0,0.97215232]
[1727461769531,0.37134,2692.0,2691.9,0.97215232]
[1727461769730,0.37134,2692.0,2691.8,0.37136]
[1727461770133,0.37135,2691.9,2691.8,0.97215232]
[1727461770430,0.92831,2692.1,2691.8,1.34351232]
[1727461770621,0.37135,2691.9,2691.8,0.97215232]
[1727461771529,0.37135,2691.9,2691.7,2.51912232]
[1727461772623,0.37136,2691.9,2691.7,2.51912232]
[1727461772924,0.37136,2691.9,2691.7,0.97215232]
[1727461772925,1.34,2691.8,2691.7,0.97215232]
[1727461773117,0.37139,2691.6,2691.5,0.3842]
[1727461773530,1.29988,2691.6,2691.5,0.3842]
[1727461773831,0.3714,2691.5,2691.4,3.2078]
[1727461774023,2.63992,2691.5,2691.4,3.2078]